fUST/lending_fUST_20251228
["ID","MTS","AMOUNT","RATE_DAILY","PERIOD"]
[399914949,1766866238567,-494.27776781,0.0001522,2]
[399914950,1766866238578,-500.0,0.0001522,2]
[399914951,1766866238588,-500.0,0.0001522,2]
[399914952,1766866238610,-500.0,0.0001522,2]
[399914953,1766866238623,-500.0,0.0001522,2]
[399914954,1766866238634,-500.0,0.0001522,2]
[399914955,1766866238644,-467.31139692,0.0001522,2]
[399914956,1766866238657,-32.68860308,0.0001522,2]
[399914957,1766866238667,-310.85100536,0.0001522,2]
[399914958,1766866238678,-500.0,0.0001522,2]
[399914959,1766866238687,-500.0,0.0001522,2]
[399914960,1766866238697,-500.0,0.0001522,2]
[399914961,1766866238707,-500.0,0.0001522,2]
[399914962,1766866238717,-500.0,0.0001522,2]
[399914963,1766866238727,-500.0,0.0001522,2]
[399914964,1766866238737,-500.0,0.0001522,2]
[399914965,1766866238748,-500.0,0.0001522,2]
[399914966,1766866238758,-500.0,0.0001522,2]
[399914967,1766866238768,-500.0,0.0001522,2]
[399914968,1766866238779,-500.0,0.0001522,2]
[399914969,1766866238789,-500.0,0.0001522,2]
[399914970,1766866238798,-300.0,0.0001522,2]
[399914971,1766866238808,-500.0,0.00015222,2]
[399914972,1766866238818,-623.10026518,0.00015222,2]
[399914973,1766866238828,-500.0,0.00015222,2]
[399914974,1766866238838,-177.0905187,0.00015222,2]
[399914975,1766866238849,-1330.08963885,0.00015223,2]
[399914976,1766866238862,-1003.08721198,0.00015223,2]
[399914977,1766866238875,-1481.05877956,0.00015223,2]
[399914978,1766866238887,-667.08320199,0.00015223,2]
[399914979,1766866238900,-2132.41304471,0.00015223,2]
[399915023,1766866245887,-450.77741358,0.00015223,2]
[399915024,1766866245899,-467.4065307,0.00015223,2]
[399915025,1766866245910,-2993.99999995,0.00015223,2]
[399915026,1766866245922,-1946.97,0.00015223,2]
[399915027,1766866245933,-1624.48012583,0.00015223,2]
[399915036,1766866246704,-26284.16541553,0.00015223,2]
[399915037,1766866246716,-3894.71051297,0.00015223,2]
[399915047,1766866281021,150.21,0.000144,2]
[399915048,1766866323301,500.0,0.00013699,2]
[399915049,1766866323358,1000.0,0.00014247,2]
[399915050,1766866334421,150.0,9.454e-05,2]
[399915051,1766866334675,152.24,0.000144,2]
[399915052,1766866334847,150.0,9.904e-05,2]
[399915053,1766866335242,150.0,0.00010354,2]
[399915054,1766866335644,150.0,0.00010804,2]
[399915055,1766866336037,141.18858408,0.00011254,2]
[399915056,1766866336070,8.81141592,0.00011254,2]
[399915057,1766866336944,150.0,0.00011705,2]
[399915058,1766866337397,150.0,0.00012155,2]
[399915059,1766866337736,158.42,0.00012605,2]
[399915060,1766866338121,178.22,0.00013055,2]
[399915061,1766866338520,169.26702178,0.00013505,2]
[399915062,1766866398845,300.0,0.00013673,2]
[399915063,1766866398878,600.0,0.00014221,2]
[399915064,1766866411938,500.0,0.00013699,2]
[399915065,1766866411997,1000.0,0.00014247,2]
[399915066,1766866418831,169.9057536,7.083e-05,2]
[399915071,1766866445632,500.0,0.00013699,2]
[399915072,1766866445678,1000.0,0.00014247,2]
[399915073,1766866532760,323.80597779,0.00014247,2]
[399915074,1766866532857,500.0,0.00013699,2]
[399915075,1766866565878,500.0,0.00013699,2]
[399915076,1766866566187,349.17307695,0.00014247,2]
[399915077,1766866881289,209.553771,0.00014171,2]
[399915078,1766867072033,152.28,0.0001439,2]
[399915079,1766867111093,169.96328441,0.00026515,120]
[399915085,1766867261820,340.47,0.00012329,2]
[399915090,1766867324430,160.34,0.0001255,2]
[399915091,1766867350120,-184.67042392,0.0001455,2]
[399915092,1766867351103,-223.8153596,0.00014967,2]
[399915093,1766867351125,-500.0,0.00015066,2]
[399915094,1766867351148,-500.0,0.00015066,2]
[399915095,1766867351171,-500.0,0.00015066,2]
[399915096,1766867351191,-500.0,0.00015066,2]
[399915097,1766867351213,-337.2060066,0.00015066,2]
[399915098,1766867351235,-279.61412223,0.00015066,2]
[399915099,1766867359974,151.22,0.000144,2]
[399915100,1766867366123,-151.22,0.00015,2]
[399915101,1766867366145,-220.38587777,0.00015066,2]
[399915102,1766867366166,-500.0,0.00015066,2]
[399915103,1766867366187,-500.0,0.00015066,2]
[399915104,1766867366209,-500.0,0.00015066,2]
[399915105,1766867366230,-500.0,0.00015066,2]
[399915106,1766867366250,-500.0,0.00015066,2]
[399915107,1766867366271,-500.0,0.00015066,2]
[399915108,1766867366293,-500.0,0.00015066,2]
[399915109,1766867366315,-500.0,0.00015066,2]
[399915110,1766867366337,-171.64398095,0.00015066,2]
[399915111,1766867366357,-500.0,0.00015066,2]
[399915112,1766867366379,-500.0,0.00015066,2]
[399915113,1766867366398,-500.0,0.00015066,2]
[399915114,1766867366422,-500.0,0.00015066,2]
[399915115,1766867366443,-500.0,0.00015066,2]
[399915116,1766867366463,-500.0,0.00015066,2]
[399915117,1766867366482,-500.0,0.00015066,2]
[399915118,1766867366502,-500.0,0.00015066,2]
[399915119,1766867366522,-500.0,0.00015066,2]
[399915120,1766867366542,-500.0,0.00015066,2]
[399915121,1766867366562,-500.0,0.00015066,2]
[399915122,1766867366582,-500.0,0.00015066,2]
[399915123,1766867366604,-500.0,0.00015066,2]
[399915124,1766867366625,-500.0,0.00015066,2]
[399915125,1766867366645,-500.0,0.00015066,2]
[399915126,1766867366665,-500.0,0.00015066,2]
[399915127,1766867366686,-500.0,0.00015066,2]
[399915128,1766867366708,-469.07155344,0.00015066,2]
[399915129,1766867366732,-500.0,0.00015066,2]
[399915130,1766867366753,-500.0,0.00015066,2]
[399915131,1766867366773,-500.0,0.00015066,2]
[399915132,1766867366794,-500.0,0.00015066,2]
[399915133,1766867366814,-500.0,0.00015066,2]
[399915134,1766867366835,-500.0,0.00015066,2]
[399915135,1766867366855,-500.0,0.00015066,2]
[399915136,1766867366874,-230.14639186,0.00015066,2]
[399915137,1766867366894,-500.0,0.00015066,2]
[399915138,1766867366915,-241.8602411,0.00015066,2]
[399915139,1766867366935,-500.0,0.00015066,2]
[399915140,1766867366954,-300.0,0.00015066,2]
[399915141,1766867366975,-25868.95179927,0.00015067,2]
[399915142,1766867366998,-300.0,0.00015067,2]
[399915143,1766867367019,-1200.0,0.00015067,2]
[399915144,1766867367039,-500.0,0.0001507,2]
[399915145,1766867367064,-308687.27124782,0.00015071,2]
[399915146,1766867386965,2425.49635722,0.0001439,2]
[399915147,1766867386986,2503.6143082,0.0001439,2]
[399915148,1766867387014,1070.88933458,0.0001439,2]
[399915165,1766867431718,-152.19,0.000144,2]
[399915166,1766867431728,-152.19,0.000148,2]
[399915167,1766867431738,-2954.81113425,0.00015071,2]
[399915168,1766867431775,-4495.30070259,0.00015071,2]
[399915265,1766867438466,-519.30216877,0.0001507,2]
[399915266,1766867438478,-500.0,0.0001507,2]
[399915267,1766867438487,-500.0,0.0001507,2]
[399915268,1766867438497,-211.10247431,0.0001507,2]
[399915269,1766867438507,-441950.35565856,0.00015071,2]
[399915270,1766867438600,-9458.22639938,0.00015071,2]
[399915271,1766867438615,-56978.59419937,0.00015071,2]
[399915272,1766867438630,-175475.44065803,0.00015071,2]
[399915273,1766867438640,-100000.0,0.00015174,2]
[399915274,1766867438649,-152.19,0.000152,2]
[399915275,1766867438660,-1300.9417647,0.00015329,2]
[399915276,1766867438670,-152.19,0.000156,2]
[399915277,1766867438683,-600.0,0.00015627,2]
[399915278,1766867438693,-152.19,0.00016,2]
[399915279,1766867438703,-1007.7626999,0.000163,2]
[399915280,1766867438713,-152.19,0.000164,2]
[399915281,1766867438722,-247.55264334,0.00016438,2]
[399915282,1766867438732,-231.56713422,0.0001645,2]
[399915283,1766867438742,-217.91110023,0.0001655,2]
[399915284,1766867438752,-445.59475801,0.00016783,2]
[399915285,1766867438761,-152.19,0.000168,2]
[399915286,1766867438772,-416.82084159,0.0001689,2]
[399915287,1766867438782,-500.0,0.00017,5]
[399915288,1766867438792,-649.33345966,0.00017,2]
[399915289,1766867438802,-152.19,0.000171,2]
[399915290,1766867438812,-200.0,0.00017167,2]
[399915291,1766867438821,-720.0,0.0001719,2]
[399915292,1766867438831,-500.0,0.000172,5]
[399915293,1766867438841,-792.16845868,0.00017215,2]
[399915294,1766867438850,-256.9514442,0.00017233,2]
[399915295,1766867438859,-178.733,0.00017239,2]
[399915296,1766867438868,-741.01482949,0.0001733,2]
[399915297,1766867438878,-152.19,0.000175,2]
[399915298,1766867438888,-800.0,0.00017543,2]
[399915299,1766867438897,-500.0,0.000176,2]
[399915300,1766867438907,-200.0,0.00017705,2]
[399915301,1766867438917,-163.15464058,0.00017806,2]
[399915302,1766867438929,-104.27399849,0.00017806,2]
[399915303,1766867438939,-152.19,0.000179,2]
[399915304,1766867438949,-250.0,0.00017958,2]
[399915305,1766867438959,-1819.78035372,0.00018,2]
[399915306,1766867438971,-14141.60820245,0.00018,2]
[399915354,1766867439952,-20731.95263763,0.00018,2]
[399915670,1766867445262,-888.1956105,0.00017644,2]
[399915671,1766867445272,-985.82327182,0.00018,2]
[399915672,1766867445284,-419.18467264,0.00018,2]
[399915673,1766867445319,-829.53625222,0.00018,2]
[399915674,1766867445331,-641.35815235,0.00018,2]
[399915687,1766867445950,-7070.28912534,0.00018,2]
[399915689,1766867450647,-470.31115789,0.00018,2]
[399915690,1766867493026,288.67,9.302e-05,2]
[399915691,1766867493456,577.34,9.745e-05,2]
[399915692,1766867493894,866.01,0.00010188,2]
[399915693,1766867494318,1154.68,0.00010631,2]
[399915694,1766867494775,1443.35,0.00011074,2]
[399915695,1766867495163,1732.02,0.00011517,2]
[399915696,1766867495620,2020.69,0.0001196,2]
[399915697,1766867496061,2309.37,0.00012403,2]
[399915698,1766867496520,2598.04,0.00012846,2]
[399915699,1766867496972,2886.71,0.00013289,2]
[399915700,1766867562598,1786.32109944,0.0001439,2]
[399915701,1766867570011,150.0,9.379e-05,2]
[399915702,1766867570406,173.2,9.826e-05,2]
[399915703,1766867570875,259.8,0.00010273,2]
[399915704,1766867571307,346.41,0.00010719,2]
[399915705,1766867571744,433.01,0.00011166,2]
[399915706,1766867572177,519.61,0.00011612,2]
[399915707,1766867572600,606.21,0.00012059,2]
[399915708,1766867573042,692.81,0.00012506,2]
[399915709,1766867573485,779.41,0.00012952,2]
[399915710,1766867573940,866.01,0.00013399,2]
[399915711,1766867608348,500.0,0.00013699,2]
[399915712,1766867608393,510.49226238,0.00014247,2]
[399915713,1766867646651,150.0,0.00010584,2]
[399915714,1766867647117,150.0,0.00011088,2]
[399915715,1766867647521,500.0,0.00013699,2]
[399915716,1766867647561,150.0,0.00011592,2]
[399915717,1766867647595,1016.31269881,0.00014247,2]
[399915718,1766867648002,150.0,0.00012096,2]
[399915719,1766867648441,150.0,0.000126,2]
[399915720,1766867648840,151.04,0.00013104,2]
[399915721,1766867649280,176.21,0.00013608,2]
[399915722,1766867649722,201.39,0.00014112,2]
[399915723,1766867670255,152.96,0.0001439,2]
[399915724,1766867684528,1000.0,0.00013992,2]
[399915725,1766867717722,150.0,7.645e-05,2]
[399915726,1766867718167,150.0,8.009e-05,2]
[399915727,1766867718638,150.0,8.373e-05,2]
[399915728,1766867719068,150.0,8.737e-05,2]
[399915729,1766868323981,175.69,0.0001439,2]
[399915730,1766868349140,-175.83,0.000144,2]
[399915731,1766868349163,-191.22409939,0.00014517,2]
[399915732,1766868349184,-15.05236904,0.000147,2]
[399915733,1766868360050,608.681634,0.00013699,2]
[399915735,1766868434152,-168.5,0.000144,2]
[399915736,1766868434174,-168.5,0.000147,2]
[399915737,1766868434195,-195.83843965,0.00014864,2]
[399915738,1766868434217,-171.31024215,0.00014962,2]
[399915739,1766868445112,-162.55102871,0.00014692,2]
[399915740,1766868445133,-128.68975785,0.00014962,2]
[399915741,1766868445156,-500.0,0.00014963,2]
[399915742,1766868445177,-500.0,0.00014963,2]
[399915743,1766868445215,-184.69035196,0.00014963,2]
[399915744,1766868445237,-500.0,0.00014963,2]
[399915745,1766868445262,-180.85106445,0.00014963,2]
[399915746,1766868445284,-417.11484819,0.00014963,2]
[399915747,1766868445307,-500.0,0.00014963,2]
[399915748,1766868445329,-500.0,0.00014963,2]
[399915749,1766868445351,-500.0,0.00014963,2]
[399915750,1766868445373,-500.0,0.00014963,2]
[399915751,1766868445394,-500.0,0.00014963,2]
[399915752,1766868445417,-500.0,0.00014963,2]
[399915753,1766868445439,-500.0,0.00014963,2]
[399915754,1766868445461,-185.00535226,0.00014963,2]
[399915755,1766868552112,-161.76,0.000144,2]
[399915756,1766868552135,-161.76,0.000147,2]
[399915757,1766868552157,-4538.8307717,0.000149,2]
[399915758,1766868552181,-187.3996174,0.00014931,2]
[399915759,1766868552202,-300.0,0.00014961,2]
[399915760,1766868552224,-453.19100316,0.00014962,2]
[399915761,1766868560093,-291.56173812,0.00014865,2]
[399915762,1766868625038,171.15,0.000144,2]
[399915799,1766868631974,-1200.0,0.00014864,2]
[399915801,1766868631984,-9903.95423614,0.00014865,2]
[399915803,1766868631993,-300.0,0.00014961,2]
[399915805,1766868632003,-300.0,0.00014961,2]
[399915807,1766868632012,-300.0,0.00014961,2]
[399915809,1766868632022,-46.80899684,0.00014962,2]
[399915811,1766868632032,-500.0,0.00014962,2]
[399915813,1766868632043,-500.0,0.00014962,2]
[399915815,1766868632052,-500.0,0.00014962,2]
[399915817,1766868632062,-500.0,0.00014962,2]
[399915819,1766868632072,-500.0,0.00014962,2]
[399915820,1766868632082,-500.0,0.00014962,2]
[399915822,1766868632091,-500.0,0.00014962,2]
[399915823,1766868632101,-500.0,0.00014962,2]
[399915824,1766868632111,-500.0,0.00014962,2]
[399915825,1766868632120,-500.0,0.00014962,2]
[399915826,1766868632131,-500.0,0.00014962,2]
[399915827,1766868632141,-503.42020221,0.00014962,2]
[399915828,1766868632150,-500.0,0.00014962,2]
[399915829,1766868632160,-500.0,0.00014962,2]
[399915830,1766868632170,-500.0,0.00014962,2]
[399915831,1766868632180,-500.0,0.00014962,2]
[399915832,1766868632189,-500.0,0.00014962,2]
[399915833,1766868632202,-225.75969405,0.00014962,2]
[399915834,1766868632212,-500.0,0.00014962,2]
[399915835,1766868632222,-500.0,0.00014962,2]
[399915836,1766868632231,-500.0,0.00014962,2]
[399915837,1766868632242,-500.0,0.00014962,2]
[399915838,1766868632253,-500.0,0.00014962,2]
[399915839,1766868632262,-500.0,0.00014962,2]
[399915840,1766868632271,-245.30164131,0.00014962,2]
[399915841,1766868632283,-500.0,0.00014962,2]
[399915842,1766868632292,-500.0,0.00014962,2]
[399915843,1766868632305,-500.0,0.00014962,2]
[399915844,1766868632314,-500.0,0.00014962,2]
[399915845,1766868632323,-500.0,0.00014962,2]
[399915846,1766868632332,-500.0,0.00014962,2]
[399915847,1766868632341,-500.0,0.00014962,2]
[399915848,1766868632351,-500.0,0.00014962,2]
[399915849,1766868632360,-500.0,0.00014962,2]
[399915850,1766868632370,-500.0,0.00014962,2]
[399915851,1766868632379,-500.0,0.00014962,2]
[399915852,1766868632389,-500.0,0.00014962,2]
[399915853,1766868632399,-500.0,0.00014962,2]
[399915854,1766868632408,-500.0,0.00014962,2]
[399915855,1766868632418,-500.0,0.00014962,2]
[399915856,1766868632427,-500.0,0.00014962,2]
[399915857,1766868632437,-500.0,0.00014962,2]
[399915858,1766868632447,-500.0,0.00014962,2]
[399915859,1766868632457,-500.0,0.00014962,2]
[399915860,1766868632469,-500.0,0.00014962,2]
[399915861,1766868632480,-500.0,0.00014962,2]
[399915862,1766868632492,-500.0,0.00014962,2]
[399915863,1766868632503,-500.0,0.00014962,2]
[399915864,1766868632513,-499.99999999,0.00014962,2]
[399915865,1766868632522,-500.0,0.00014962,2]
[399915866,1766868632532,-500.0,0.00014962,2]
[399915867,1766868632542,-500.0,0.00014962,2]
[399915868,1766868632552,-500.0,0.00014962,2]
[399915869,1766868632561,-500.0,0.00014962,2]
[399915870,1766868632572,-500.0,0.00014962,2]
[399915871,1766868632582,-500.0,0.00014962,2]
[399915872,1766868632593,-500.0,0.00014962,2]
[399915873,1766868632602,-157.71477179,0.00014962,2]
[399915874,1766868632613,-500.0,0.00014962,2]
[399915875,1766868632622,-476.59574512,0.00014962,2]
[399915876,1766868632632,-500.0,0.00014962,2]
[399915877,1766868632642,-491.98039373,0.00014962,2]
[399915878,1766868632655,-323.250611,0.00015068,2]
[399915879,1766868632665,-16281.5397981,0.00015274,2]
[399915880,1766868632675,-351.71037613,0.00015828,7]
[399915881,1766868632684,-327.63650803,0.00015958,7]
[399915882,1766868632694,-3632.9025826,0.00016276,2]
[399915883,1766868632704,-1680.0,0.0001635,2]
[399915884,1766868632714,-296.0,0.00016374,2]
[399915885,1766868632724,-393.0,0.00016374,2]
[399915886,1766868632733,-420.0,0.00016374,2]
[399915887,1766868632743,-493.50902943,0.00016438,2]
[399915888,1766868632753,-188.16681206,0.00016438,2]
[399915889,1766868632764,-338.33240446,0.00016438,2]
[399915890,1766868632778,-161.66759554,0.00016438,2]
[399915891,1766868632788,-500.0,0.00016438,2]
[399915892,1766868632798,-500.0,0.00016438,2]
[399915893,1766868632807,-500.0,0.00016438,2]
[399915894,1766868632816,-500.0,0.00016438,2]
[399915895,1766868632827,-500.0,0.00016438,2]
[399915896,1766868632836,-250.0,0.00016438,2]
[399915897,1766868632846,-500.0,0.00016438,2]
[399915898,1766868632856,-500.0,0.00016438,2]
[399915899,1766868632865,-500.0,0.00016438,2]
[399915900,1766868632875,-500.0,0.00016438,2]
[399915901,1766868632884,-500.0,0.00016438,2]
[399915902,1766868632894,-500.0,0.00016438,2]
[399915903,1766868632905,-500.0,0.00016438,2]
[399915904,1766868632915,-500.0,0.00016438,2]
[399915905,1766868632926,-500.0,0.00016438,2]
[399915906,1766868632935,-500.0,0.00016438,2]
[399915907,1766868632945,-500.0,0.00016438,2]
[399915908,1766868632955,-500.0,0.00016438,2]
[399915909,1766868632965,-500.0,0.00016438,2]
[399915910,1766868632975,-500.0,0.00016438,2]
[399915911,1766868632990,-500.0,0.00016438,2]
[399915912,1766868633000,-500.0,0.00016438,2]
[399915913,1766868633009,-500.0,0.00016438,2]
[399915914,1766868633019,-500.0,0.00016438,2]
[399915915,1766868633029,-500.0,0.00016438,2]
[399915916,1766868633039,-500.0,0.00016438,2]
[399915917,1766868633049,-500.0,0.00016438,2]
[399915918,1766868633059,-500.0,0.00016438,2]
[399915919,1766868633069,-500.0,0.00016438,2]
[399915920,1766868633079,-500.0,0.00016438,2]
[399915921,1766868633088,-500.0,0.00016438,2]
[399915922,1766868633098,-500.0,0.00016438,2]
[399915923,1766868633108,-500.76287436,0.00016438,2]
[399915924,1766868633118,-500.0,0.00016438,2]
[399915925,1766868633128,-500.0,0.00016438,2]
[399915926,1766868633139,-500.0,0.00016438,2]
[399915927,1766868633149,-888.31625298,0.00016438,2]
[399915928,1766868633159,-810.610135,0.000165,2]
[399915929,1766868633171,-1579.22889419,0.00016511,2]
[399915930,1766868633181,-600.0,0.00016766,2]
[399915931,1766868633191,-166.6,0.00016873,2]
[399915932,1766868633202,-338.36156145,0.000169,2]
[399915933,1766868633213,-2467.54514717,0.00016907,2]
[399915934,1766868633222,-221.13154853,0.00016931,2]
[399915935,1766868633232,-166.6,0.00017438,2]
[399915936,1766868633243,-171.15,0.000175,2]
[399915937,1766868633253,-587.0,0.00017922,2]
[399915938,1766868633263,-773.0,0.00017985,2]
[399915939,1766868633272,-202.45941914,0.00017993,2]
[399915940,1766868633283,-81369.18646513,0.00018,2]
[399915941,1766868633293,-29953.44474139,0.00018,2]
[399915942,1766868633303,-166.6,0.00018003,2]
[399915943,1766868633312,-386.144579,0.00018168,2]
[399915944,1766868633322,-160.0,0.00018421,2]
[399915945,1766868633331,-720.0,0.00018442,2]
[399915946,1766868633355,-323.250611,0.00018493,2]
[399915947,1766868633366,-166.6,0.00018568,2]
[399915948,1766868633377,-500.0,0.00018743,2]
[399915949,1766868633387,-1289.90230304,0.00018772,7]
[399915950,1766868633398,-11110.98001828,0.000189,2]
[399915964,1766868637835,-2472.99554256,0.000189,2]
[399915970,1766868637890,-3032.07899266,0.000189,2]
[399915973,1766868637904,-5055.84586514,0.000189,2]
[399915975,1766868637914,-254.86347967,0.00018931,2]
[399915977,1766868637924,-260.0,0.00018969,2]
[399915979,1766868637934,-6192.99057816,0.0001899,2]
[399915981,1766868637946,-961.71379467,0.0001899,2]
[399915984,1766868637958,-1703.45085993,0.0001899,2]
[399915986,1766868637975,-572.07164336,0.0001899,2]
[399915988,1766868637987,-562.31420507,0.0001899,2]
[399915991,1766868637999,-435.0,0.0001899,2]
[399915997,1766868638589,-403.87186226,0.0001899,2]
[399916000,1766868640137,-733.73686278,0.0001899,2]
[399916001,1766868640150,-528.89051107,0.0001899,2]
[399916002,1766868640165,-3080.82232218,0.0001899,2]
[399916003,1766868640203,-890.80323467,0.0001899,2]
[399916004,1766868640387,-94.67720017,0.0001899,2]
[399916015,1766868644796,-420.0,0.0001899,2]
[399916016,1766868644809,-1959.42071875,0.0001899,2]
[399916023,1766868645931,-778.77913156,0.000188,2]
[399916024,1766868645946,-3296.65674961,0.000188,2]
[399916025,1766868646066,-907.21964252,0.000188,2]
[399916029,1766868665609,161.0,0.000144,2]
[399916030,1766868681654,116.984,8.004e-05,2]
[399916031,1766868681686,33.016,8.004e-05,2]
[399916032,1766868682094,176.4,8.385e-05,2]
[399916033,1766868682530,264.6,8.766e-05,2]
[399916034,1766868682963,352.8,9.148e-05,2]
[399916035,1766868683407,441.0,9.529e-05,2]
[399916036,1766868683843,529.2,9.91e-05,2]
[399916037,1766868684300,617.39,0.00010291,2]
[399916038,1766868684750,705.59,0.00010672,2]
[399916039,1766868685209,793.79,0.00011053,2]
[399916040,1766868685628,881.99,0.00011434,2]
[399916041,1766868757648,150.0,9.696e-05,2]
[399916042,1766868758117,150.0,0.00010157,2]
[399916043,1766868758562,150.0,0.00010619,2]
[399916044,1766868758991,150.0,0.00011081,2]
[399916045,1766868759455,150.0,0.00011542,2]
[399916046,1766868759853,154.04,0.00012004,2]
[399916047,1766868760476,179.71,0.00012466,2]
[399916048,1766868760739,205.39,0.00012928,2]
[399916049,1766868761178,231.06,0.00013389,2]
[399916050,1766868761627,256.73,0.00013851,2]
[399916051,1766868798060,999.0,0.00013896,2]
[399916052,1766868826743,150.0,7.244e-05,2]
[399916053,1766869079662,12894.6150609,0.0001385,2]
[399916054,1766869556242,-211.09104567,0.00014399,2]
[399916055,1766869733928,209.5537718,0.00013699,2]
[399916056,1766869748145,-986.89014135,0.00014399,2]
[399916057,1766869751099,-2.01881298,0.00014399,2]
[399916058,1766869751120,-300.0,0.00014399,2]
[399916059,1766869751139,-500.0,0.000144,2]
[399916060,1766869751159,-500.0,0.000144,2]
[399916061,1766869751179,-500.0,0.000144,2]
[399916062,1766869751198,-282.03784772,0.000144,2]
[399916063,1766869751218,-175.31,0.000144,2]
[399916064,1766869751239,-185.49709718,0.00014435,2]
[399916065,1766869751258,-300.0,0.0001447,2]
[399916066,1766869751278,-627.0,0.00014475,2]
[399916067,1766869751305,-175.31,0.000147,2]
[399916068,1766869751326,-3294.15759468,0.00014759,2]
[399916069,1766869811089,500.0,0.00013699,2]
[399916070,1766869811118,1000.0,0.00014247,2]
[399916071,1766869822847,170.91,0.000144,2]
[399916094,1766869832500,-300.0,0.00014758,2]
[399916095,1766869832511,-10522.17198542,0.00014759,2]
[399916097,1766869832522,-632.0,0.00014759,2]
[399916099,1766869832547,-181.78715524,0.0001476,2]
[399916100,1766869832558,-167966.37396999,0.00014762,2]
[399916101,1766869832568,-200.0,0.000148,2]
[399916103,1766869832579,-200.0,0.000148,3]
[399916105,1766869832590,-480.91953528,0.00014859,2]
[399916107,1766869832600,-500.0,0.00014859,2]
[399916109,1766869832611,-500.0,0.00014859,2]
[399916111,1766869832621,-500.0,0.00014859,2]
[399916113,1766869832632,-500.0,0.00014859,2]
[399916115,1766869832643,-500.0,0.00014859,2]
[399916117,1766869832654,-500.0,0.00014859,2]
[399916118,1766869832664,-628.49982047,0.00014859,2]
[399916119,1766869832674,-154.19612728,0.00014859,2]
[399916120,1766869832684,-500.0,0.00014859,2]
[399916121,1766869832695,-500.0,0.00014859,2]
[399916122,1766869832704,-500.0,0.00014859,2]
[399916123,1766869832714,-520.68115022,0.00014862,2]
[399916124,1766869832724,-500.0,0.00014862,2]
[399916125,1766869832734,-592.92645693,0.00014862,2]
[399916126,1766869832744,-204.8804204,0.000152,2]
[399916127,1766869832754,-309.112056,0.000152,2]
[399916128,1766869832764,-303.1451944,0.000152,2]
[399916129,1766869832775,-303.1451944,0.000152,2]
[399916130,1766869832786,-500.0,0.000153,2]
[399916131,1766869832796,-303.1451944,0.000154,2]
[399916132,1766869832807,-303.1451944,0.000154,2]
[399916133,1766869832816,-420.0,0.00016156,2]
[399916134,1766869832827,-500.0,0.00016438,2]
[399916135,1766869832837,-500.0,0.00016438,2]
[399916136,1766869832848,-500.0,0.00016438,2]
[399916137,1766869832858,-325.07628744,0.00016438,2]
[399916138,1766869832867,-214.50884318,0.0001676,2]
[399916139,1766869832877,-170.91,0.00017,2]
[399916140,1766869832894,-536.0740238,0.00017029,2]
[399916141,1766869832904,-461.67526834,0.00017163,2]
[399916142,1766869832914,-500.0,0.00017163,2]
[399916143,1766869832924,-500.0,0.00017163,2]
[399916144,1766869832936,-665.08457916,0.00017257,2]